[Event "*** Titled Tuesday Blitz"]
[Site "Chess.com"]
[Date "2021.02.09"]
[Round "8"]
[White "Manukyan_Artak"]
[Black "Cuajada_Zero"]
[Result "1-0"]
[WhiteElo "2355"]
[BlackElo "2192"]
[TimeControl "180+1"]
[EndTime "11:29:28 PST"]
[Termination "Manukyan_Artak won on time"]

1. e4 {[%clk 0:03:00.9]} 1... c6 {[%clk 0:02:55.3]} 2. d4 {[%clk 0:03:00.7]}
2... d5 {[%clk 0:02:54.8]} 3. e5 {[%clk 0:03:01.2]} 3... Bf5 {[%clk 0:02:54.3]}
4. c4 {[%clk 0:03:01.4]} 4... e6 {[%clk 0:02:53.9]} 5. Nc3 {[%clk 0:03:01.8]}
5... Ne7 {[%clk 0:02:51.5]} 6. Nf3 {[%clk 0:03:01.2]} 6... Nd7 {[%clk
0:02:50.3]} 7. Nh4 {[%clk 0:03:01.1]} 7... Bg6 {[%clk 0:02:49.7]} 8. Bg5 {[%clk
0:02:36.1]} 8... Qb6 {[%clk 0:02:46]} 9. Qd2 {[%clk 0:02:35]} 9... Nf5 {[%clk
0:02:44.1]} 10. Nxf5 {[%clk 0:02:34.4]} 10... Bxf5 {[%clk 0:02:43.3]} 11. cxd5
{[%clk 0:02:34.5]} 11... cxd5 {[%clk 0:02:41.5]} 12. Bb5 {[%clk 0:02:32.5]}
12... Rc8 {[%clk 0:02:22.5]} 13. O-O {[%clk 0:02:11.9]} 13... a6 {[%clk
0:02:15.4]} 14. Bxd7+ {[%clk 0:02:11.2]} 14... Kxd7 {[%clk 0:02:16.3]} 15. Rac1
{[%clk 0:01:59.7]} 15... Bb4 {[%clk 0:01:53.1]} 16. h3 {[%clk 0:01:40.8]} 16...
Rc4 {[%clk 0:01:37.7]} 17. Be3 {[%clk 0:01:36.4]} 17... Rhc8 {[%clk 0:01:28.6]}
18. a3 {[%clk 0:01:27.1]} 18... Bxc3 {[%clk 0:00:45.3]} 19. Rxc3 {[%clk
0:01:28]} 19... Rxc3 {[%clk 0:00:45]} 20. bxc3 {[%clk 0:01:27.9]} 20... Qb3
{[%clk 0:00:42.7]} 21. Rc1 {[%clk 0:01:25.8]} 21... Qxa3 {[%clk 0:00:41.7]} 22.
g4 {[%clk 0:01:23.7]} 22... Bg6 {[%clk 0:00:39]} 23. h4 {[%clk 0:01:16.2]} 23...
h6 {[%clk 0:00:33.8]} 24. h5 {[%clk 0:01:15.3]} 24... Be4 {[%clk 0:00:29.9]} 25.
Kh2 {[%clk 0:01:06.8]} 25... b5 {[%clk 0:00:29.6]} 26. Kg3 {[%clk 0:01:06.6]}
26... b4 {[%clk 0:00:20.5]} 27. cxb4 {[%clk 0:01:05.2]} 27... Rxc1 {[%clk
0:00:17.5]} 28. Qxc1 {[%clk 0:01:06.1]} 28... Qxc1 {[%clk 0:00:13.1]} 29. Bxc1
{[%clk 0:01:07]} 29... Kc6 {[%clk 0:00:12.6]} 30. g5 {[%clk 0:01:02.2]} 30...
hxg5 {[%clk 0:00:11.4]} 31. Bxg5 {[%clk 0:01:01.9]} 31... Kb5 {[%clk 0:00:11.6]}
32. Be7 {[%clk 0:01:01.5]} 32... Kc4 {[%clk 0:00:09.3]} 33. Bc5 {[%clk
0:01:01.5]} 33... Kd3 {[%clk 0:00:07.4]} 34. f3 {[%clk 0:00:56.4]} 34... Bf5
{[%clk 0:00:06.7]} 35. Kf4 {[%clk 0:00:56.6]} 35... Bh7 {[%clk 0:00:06.1]} 36.
Kg5 {[%clk 0:00:49.9]} 36... Ke3 {[%clk 0:00:05.1]} 37. f4 {[%clk 0:00:49.8]}
37... Ke4 {[%clk 0:00:04.7]} 38. Bf8 {[%clk 0:00:47.4]} 38... g6 {[%clk
0:00:04]} 39. h6 {[%clk 0:00:47.3]} 39... Kxd4 {[%clk 0:00:03.2]} 40. Kf6 {[%clk
0:00:47.5]} 40... g5 {[%clk 0:00:03]} 41. fxg5 {[%clk 0:00:43.1]} 41... Ke4
{[%clk 0:00:03.4]} 42. Kxf7 {[%clk 0:00:41.4]} 42... Kf5 {[%clk 0:00:03.7]} 43.
Kg7 {[%clk 0:00:35.1]} 43... Bg6 {[%clk 0:00:02.8]} 44. Bc5 {[%clk 0:00:23.5]}
1-0

[Event "*** Titled Tuesday Blitz"]
[Site "Chess.com"]
[Date "2021.02.09"]
[Round "8"]
[White "zeitnot2006"]
[Black "NovikovaGalina"]
[Result "1-0"]
[WhiteElo "2530"]
[BlackElo "2391"]
[TimeControl "180+1"]
[EndTime "11:29:31 PST"]
[Termination "zeitnot2006 won by resignation"]

1. e4 {[%clk 0:02:57.4]} 1... e6 {[%clk 0:03:00]} 2. b3 {[%clk 0:02:56.9]} 2...
d5 {[%clk 0:03:00.9]} 3. Bb2 {[%clk 0:02:57.6]} 3... dxe4 {[%clk 0:03:01.2]} 4.
Nc3 {[%clk 0:02:57.9]} 4... Nf6 {[%clk 0:03:01.2]} 5. g4 {[%clk 0:02:58.3]} 5...
h6 {[%clk 0:02:55.9]} 6. Bg2 {[%clk 0:02:52.8]} 6... Bd7 {[%clk 0:02:28.1]} 7.
Nxe4 {[%clk 0:02:43]} 7... Nxe4 {[%clk 0:02:28.1]} 8. Bxe4 {[%clk 0:02:41.9]}
8... Bc6 {[%clk 0:02:29]} 9. Qe2 {[%clk 0:02:39.3]} 9... Bxe4 {[%clk 0:02:16.6]}
10. Qxe4 {[%clk 0:02:40.2]} 10... Nc6 {[%clk 0:02:15.9]} 11. Nf3 {[%clk
0:02:30.4]} 11... Qd5 {[%clk 0:02:11.9]} 12. Qxd5 {[%clk 0:02:23.9]} 12... exd5
{[%clk 0:02:12.8]} 13. O-O-O {[%clk 0:02:22.8]} 13... O-O-O {[%clk 0:02:13]} 14.
h4 {[%clk 0:02:20.9]} 14... d4 {[%clk 0:01:54.9]} 15. h5 {[%clk 0:02:13.9]}
15... Bc5 {[%clk 0:01:53.4]} 16. Rde1 {[%clk 0:02:11.3]} 16... Rhe8 {[%clk
0:01:53.4]} 17. a3 {[%clk 0:02:07.2]} 17... a5 {[%clk 0:01:52.8]} 18. a4 {[%clk
0:01:48.2]} 18... Kd7 {[%clk 0:01:36]} 19. Kd1 {[%clk 0:01:47.3]} 19... Kd6
{[%clk 0:01:27.1]} 20. Nh4 {[%clk 0:01:29.3]} 20... Rxe1+ {[%clk 0:01:06.8]} 21.
Rxe1 {[%clk 0:01:28.4]} 21... Ne7 {[%clk 0:00:30.7]} 22. f4 {[%clk 0:01:20.4]}
22... g6 {[%clk 0:00:27.2]} 23. Nf3 {[%clk 0:00:56.6]} 23... Nc6 {[%clk
0:00:23.5]} 24. hxg6 {[%clk 0:00:49.3]} 24... fxg6 {[%clk 0:00:24.4]} 25. Rh1
{[%clk 0:00:49.2]} 25... Rh8 {[%clk 0:00:21.1]} 26. Nh4 {[%clk 0:00:36.2]} 26...
Ne7 {[%clk 0:00:20.5]} 27. Nf3 {[%clk 0:00:34.6]} 27... Nc6 {[%clk 0:00:20.3]}
28. c3 {[%clk 0:00:33.3]} 28... Kd5 {[%clk 0:00:18.2]} 29. Nh4 {[%clk
0:00:23.5]} 29... Ne7 {[%clk 0:00:16.2]} 30. Kc2 {[%clk 0:00:21]} 30... g5
{[%clk 0:00:09.7]} 31. Ng2 {[%clk 0:00:17]} 31... gxf4 {[%clk 0:00:06.9]} 32.
Nxf4+ {[%clk 0:00:15.5]} 32... Ke4 {[%clk 0:00:05.9]} 33. Ne6 {[%clk 0:00:14.3]}
33... d3+ {[%clk 0:00:06.1]} 34. Kd1 {[%clk 0:00:13.7]} 34... Bf2 {[%clk
0:00:05.8]} 35. c4 {[%clk 0:00:12.4]} 35... c6 {[%clk 0:00:05.8]} 36. Bxh8
{[%clk 0:00:12]} 36... Ng6 {[%clk 0:00:06]} 37. Bc3 {[%clk 0:00:10.8]} 37... Kf3
{[%clk 0:00:04.6]} 38. Rxh6 {[%clk 0:00:10.3]} 38... Nh4 {[%clk 0:00:03.9]} 39.
Rf6+ {[%clk 0:00:08.8]} 39... Kxg4 {[%clk 0:00:04.1]} 40. Rxf2 {[%clk
0:00:08.6]} 1-0

[Event "*** Titled Tuesday Blitz"]
[Site "Chess.com"]
[Date "2021.02.09"]
[Round "8"]
[White "Kaliopa"]
[Black "DinaBelenkaya"]
[Result "0-1"]
[WhiteElo "2185"]
[BlackElo "2347"]
[TimeControl "180+1"]
[EndTime "11:29:32 PST"]
[Termination "DinaBelenkaya won by resignation"]

1. e4 {[%clk 0:03:00.9]} 1... d5 {[%clk 0:02:59.5]} 2. exd5 {[%clk 0:03:00.4]}
2... Qxd5 {[%clk 0:03:00.4]} 3. Nc3 {[%clk 0:03:00.8]} 3... Qa5 {[%clk
0:02:58.5]} 4. d4 {[%clk 0:03:00.8]} 4... Nf6 {[%clk 0:02:56.6]} 5. Bc4 {[%clk
0:02:59.9]} 5... c6 {[%clk 0:02:56.7]} 6. Nf3 {[%clk 0:02:58.5]} 6... Bf5 {[%clk
0:02:54.6]} 7. Qe2 {[%clk 0:02:57.6]} 7... e6 {[%clk 0:02:53.3]} 8. Bd2 {[%clk
0:02:55.9]} 8... Qb6 {[%clk 0:02:53.5]} 9. O-O-O {[%clk 0:02:54.6]} 9... Nbd7
{[%clk 0:02:53.3]} 10. Ne5 {[%clk 0:02:46.8]} 10... Qxd4 {[%clk 0:02:33.6]} 11.
Nxd7 {[%clk 0:02:29.2]} 11... Qxd7 {[%clk 0:02:34.5]} 12. Bg5 {[%clk 0:02:27.1]}
12... Qc7 {[%clk 0:02:32.1]} 13. Bxf6 {[%clk 0:02:05.3]} 13... gxf6 {[%clk
0:02:33]} 14. Kb1 {[%clk 0:02:05.8]} 14... Be7 {[%clk 0:02:25.1]} 15. g4 {[%clk
0:02:03.8]} 15... Bg6 {[%clk 0:02:23.2]} 16. Rhe1 {[%clk 0:01:29.3]} 16... h5
{[%clk 0:01:58.3]} 17. h3 {[%clk 0:01:18.2]} 17... Rd8 {[%clk 0:01:55.9]} 18.
Rxd8+ {[%clk 0:01:14.9]} 18... Qxd8 {[%clk 0:01:56.7]} 19. f4 {[%clk 0:01:13.1]}
19... hxg4 {[%clk 0:01:40.9]} 20. hxg4 {[%clk 0:01:14]} 20... f5 {[%clk
0:01:34.1]} 21. g5 {[%clk 0:01:05]} 21... Qd6 {[%clk 0:01:25.7]} 22. Qe3 {[%clk
0:00:45.6]} 22... Rh4 {[%clk 0:01:17.6]} 23. Ne2 {[%clk 0:00:39.9]} 23... Bh5
{[%clk 0:01:13.3]} 24. Rf1 {[%clk 0:00:31.1]} 24... Bxg5 {[%clk 0:00:56.1]} 25.
fxg5 {[%clk 0:00:19.5]} 25... Rxc4 {[%clk 0:00:57]} 26. Qh3 {[%clk 0:00:16.3]}
26... Bxe2 {[%clk 0:00:51.1]} 27. Qh8+ {[%clk 0:00:15.6]} 27... Kd7 {[%clk
0:00:51]} 28. Rc1 {[%clk 0:00:13.9]} 28... Kc7 {[%clk 0:00:27.8]} 29. Qg7 {[%clk
0:00:12.8]} 29... Qd2 {[%clk 0:00:19.6]} 30. Qxf7+ {[%clk 0:00:11.7]} 30... Kb6
{[%clk 0:00:19.7]} 31. Qxe6 {[%clk 0:00:09.4]} 31... Rxc2 {[%clk 0:00:16.8]} 32.
Qb3+ {[%clk 0:00:08.6]} 32... Kc7 {[%clk 0:00:14.6]} 33. Qf7+ {[%clk 0:00:04.8]}
33... Kb6 {[%clk 0:00:12.2]} 34. Qb3+ {[%clk 0:00:04.6]} 34... Kc7 {[%clk
0:00:12.5]} 35. Qf7+ {[%clk 0:00:04.7]} 35... Kd8 {[%clk 0:00:11.4]} 36. Qf8+
{[%clk 0:00:04.3]} 36... Kd7 {[%clk 0:00:11.7]} 37. Qf7+ {[%clk 0:00:04.8]}
37... Kd6 {[%clk 0:00:11.7]} 38. Qf6+ {[%clk 0:00:05.4]} 38... Kc5 {[%clk
0:00:11.7]} 39. Qxf5+ {[%clk 0:00:05.1]} 39... Kb6 {[%clk 0:00:10.6]} 40. Qf2+
{[%clk 0:00:04.7]} 40... Ka6 {[%clk 0:00:08.5]} 41. Rxc2 {[%clk 0:00:02.5]}
41... Qd1+ {[%clk 0:00:08.8]} 42. Rc1 {[%clk 0:00:02.8]} 42... Bd3+ {[%clk
0:00:09.7]} 43. Qc2 {[%clk 0:00:03]} 43... Bxc2+ {[%clk 0:00:09.6]} 0-1

[Event "*** Titled Tuesday Blitz"]
[Site "Chess.com"]
[Date "2021.02.09"]
[Round "8"]
[White "frazier69"]
[Black "Margency"]
[Result "0-1"]
[WhiteElo "2518"]
[BlackElo "2651"]
[TimeControl "180+1"]
[EndTime "11:29:33 PST"]
[Termination "Margency won on time"]

1. e4 {[%clk 0:03:00.9]} 1... c5 {[%clk 0:02:59.9]} 2. Nf3 {[%clk 0:02:57.4]}
2... d6 {[%clk 0:03:00]} 3. d4 {[%clk 0:02:56.2]} 3... cxd4 {[%clk 0:03:00.9]}
4. Nxd4 {[%clk 0:02:56.2]} 4... Nf6 {[%clk 0:03:01.4]} 5. Nc3 {[%clk 0:02:56.1]}
5... a6 {[%clk 0:03:01.8]} 6. Be2 {[%clk 0:02:55.5]} 6... e6 {[%clk 0:03:01.9]}
7. O-O {[%clk 0:02:52]} 7... Be7 {[%clk 0:03:02.5]} 8. a4 {[%clk 0:02:50.6]}
8... Nc6 {[%clk 0:03:02.2]} 9. Be3 {[%clk 0:02:45.5]} 9... O-O {[%clk
0:03:01.9]} 10. f4 {[%clk 0:02:45]} 10... Qc7 {[%clk 0:03:02.1]} 11. Bd3 {[%clk
0:02:41.4]} 11... Bd7 {[%clk 0:02:59]} 12. Kh1 {[%clk 0:02:34.8]} 12... Nb4
{[%clk 0:02:56]} 13. a5 {[%clk 0:02:33.3]} 13... Rac8 {[%clk 0:02:55.2]} 14. Nf3
{[%clk 0:02:28.4]} 14... Bc6 {[%clk 0:02:42.2]} 15. Bd4 {[%clk 0:02:11.3]} 15...
Nd7 {[%clk 0:02:32.6]} 16. Qe1 {[%clk 0:01:38.4]} 16... e5 {[%clk 0:02:16.1]}
17. Be3 {[%clk 0:01:37.7]} 17... exf4 {[%clk 0:02:09.2]} 18. Bxf4 {[%clk
0:01:35.6]} 18... Ne5 {[%clk 0:02:08.7]} 19. Nxe5 {[%clk 0:01:22.5]} 19... dxe5
{[%clk 0:02:07.7]} 20. Be3 {[%clk 0:01:22.7]} 20... Nxd3 {[%clk 0:01:56.9]} 21.
cxd3 {[%clk 0:01:22]} 21... Qd7 {[%clk 0:01:57.1]} 22. Rd1 {[%clk 0:01:12.6]}
22... Qe6 {[%clk 0:01:54.9]} 23. Qg3 {[%clk 0:01:05.9]} 23... Rfd8 {[%clk
0:01:51.1]} 24. Bb6 {[%clk 0:01:04.6]} 24... Rd7 {[%clk 0:01:43.8]} 25. Rf3
{[%clk 0:01:04]} 25... Bb4 {[%clk 0:01:38.7]} 26. Rdf1 {[%clk 0:01:00]} 26...
Rf8 {[%clk 0:01:10.8]} 27. Ne2 {[%clk 0:00:25.9]} 27... Bb5 {[%clk 0:00:59.2]}
28. Nc3 {[%clk 0:00:25.3]} 28... Bc6 {[%clk 0:00:52]} 29. Ne2 {[%clk 0:00:23.3]}
29... f6 {[%clk 0:00:49.1]} 30. h3 {[%clk 0:00:19.6]} 30... Qf7 {[%clk
0:00:38.9]} 31. Rxf6 {[%clk 0:00:17.9]} 31... Qxf6 {[%clk 0:00:35.3]} 32. Rxf6
{[%clk 0:00:17.9]} 32... Rxf6 {[%clk 0:00:35.7]} 33. Nc3 {[%clk 0:00:15.8]}
33... Re6 {[%clk 0:00:24.6]} 34. Qg4 {[%clk 0:00:15]} 34... Rg6 {[%clk
0:00:21.2]} 35. Qf5 {[%clk 0:00:10.7]} 35... Rxd3 {[%clk 0:00:16.6]} 36. Nd5
{[%clk 0:00:10.3]} 36... Rd1+ {[%clk 0:00:11.8]} 37. Kh2 {[%clk 0:00:10.2]}
37... Bf8 {[%clk 0:00:11.7]} 38. Qc8 {[%clk 0:00:02.5]} 38... Bxd5 {[%clk
0:00:10.9]} 39. exd5 {[%clk 0:00:03.4]} 39... Rd2 {[%clk 0:00:11.4]} 40. Bc5
{[%clk 0:00:01.9]} 40... Rf6 {[%clk 0:00:08.6]} 0-1

[Event "*** Titled Tuesday Blitz"]
[Site "Chess.com"]
[Date "2021.02.09"]
[Round "8"]
[White "Guzman70"]
[Black "Eternauta2400"]
[Result "0-1"]
[WhiteElo "2245"]
[BlackElo "2383"]
[TimeControl "180+1"]
[EndTime "11:29:33 PST"]
[Termination "Eternauta2400 won by checkmate"]

1. d4 {[%clk 0:03:00.9]} 1... Nf6 {[%clk 0:02:59]} 2. Bf4 {[%clk 0:03:00.3]}
2... d6 {[%clk 0:02:58.9]} 3. Nc3 {[%clk 0:02:59.3]} 3... g6 {[%clk 0:02:59.3]}
4. e4 {[%clk 0:02:59.4]} 4... Bg7 {[%clk 0:02:59.7]} 5. Qd2 {[%clk 0:02:59.6]}
5... Nbd7 {[%clk 0:02:59.4]} 6. O-O-O {[%clk 0:02:58.7]} 6... O-O {[%clk
0:02:57.1]} 7. Bh6 {[%clk 0:02:41.7]} 7... c5 {[%clk 0:02:54]} 8. dxc5 {[%clk
0:02:38]} 8... Nxc5 {[%clk 0:02:53.4]} 9. f3 {[%clk 0:02:37.6]} 9... Be6 {[%clk
0:02:43]} 10. h4 {[%clk 0:02:33.6]} 10... a6 {[%clk 0:02:34.5]} 11. h5 {[%clk
0:02:31]} 11... Qa5 {[%clk 0:01:23.2]} 12. Nge2 {[%clk 0:02:07.6]} 12... b5
{[%clk 0:01:22.6]} 13. Bxg7 {[%clk 0:01:48.1]} 13... Kxg7 {[%clk 0:01:20.7]} 14.
hxg6 {[%clk 0:01:19.1]} 14... fxg6 {[%clk 0:01:19.5]} 15. Qh6+ {[%clk
0:01:18.3]} 15... Kg8 {[%clk 0:01:18.9]} 16. Nd4 {[%clk 0:01:12.1]} 16... Bf7
{[%clk 0:01:14.1]} 17. a3 {[%clk 0:01:06.1]} 17... b4 {[%clk 0:01:09]} 18. axb4
{[%clk 0:01:05.6]} 18... Qxb4 {[%clk 0:01:05.4]} 19. Nc6 {[%clk 0:00:56.1]}
19... Qb7 {[%clk 0:01:00.9]} 20. Nd5 {[%clk 0:00:49.8]} 20... Bxd5 {[%clk
0:00:57.1]} 21. exd5 {[%clk 0:00:49.7]} 21... Na4 {[%clk 0:00:49.2]} 22. b3
{[%clk 0:00:42.9]} 22... Nc3 {[%clk 0:00:46.7]} 23. Rd3 {[%clk 0:00:31.9]} 23...
Ncxd5 {[%clk 0:00:30.9]} 24. Rxd5 {[%clk 0:00:30.7]} 24... Qxc6 {[%clk
0:00:27.9]} 25. Bc4 {[%clk 0:00:19.9]} 25... e6 {[%clk 0:00:26.3]} 26. Rg5
{[%clk 0:00:18.9]} 26... Kf7 {[%clk 0:00:22.3]} 27. Re1 {[%clk 0:00:11.2]} 27...
d5 {[%clk 0:00:21]} 28. Bd3 {[%clk 0:00:11.2]} 28... Qc3 {[%clk 0:00:18.1]} 29.
Bxg6+ {[%clk 0:00:09.6]} 29... hxg6 {[%clk 0:00:14.3]} 30. Qxg6+ {[%clk
0:00:05.3]} 30... Ke7 {[%clk 0:00:14.8]} 31. Rge5 {[%clk 0:00:04.7]} 31... Qa1+
{[%clk 0:00:13.5]} 32. Kd2 {[%clk 0:00:05]} 32... Qa5+ {[%clk 0:00:13.1]} 33.
Kc1 {[%clk 0:00:04.2]} 33... Qa1+ {[%clk 0:00:11.1]} 34. Kd2 {[%clk 0:00:04.1]}
34... Qa5+ {[%clk 0:00:11.4]} 35. Kc1 {[%clk 0:00:04.2]} 35... Kd7 {[%clk
0:00:10.5]} 36. Rxe6 {[%clk 0:00:04.2]} 36... Rae8 {[%clk 0:00:09.8]} 37. Qg7+
{[%clk 0:00:03.4]} 37... Kc8 {[%clk 0:00:07.7]} 38. Rc6+ {[%clk 0:00:03.1]}
38... Kb8 {[%clk 0:00:07]} 39. Rxe8+ {[%clk 0:00:02.9]} 39... Rxe8 {[%clk
0:00:07.1]} 40. Qxf6 {[%clk 0:00:02.9]} 40... Re1+ {[%clk 0:00:05.8]} 41. Kb2
{[%clk 0:00:02.1]} 41... Qa1# {[%clk 0:00:06.3]} 0-1

[Event "*** Titled Tuesday Blitz"]
[Site "Chess.com"]
[Date "2021.02.09"]
[Round "8"]
[White "Brave_spirit12"]
[Black "vovachesss"]
[Result "1-0"]
[WhiteElo "2506"]
[BlackElo "2716"]
[TimeControl "180+1"]
[EndTime "11:29:34 PST"]
[Termination "Brave_spirit12 won on time"]

1. e4 {[%clk 0:02:59.4]} 1... e5 {[%clk 0:02:59.9]} 2. Nf3 {[%clk 0:02:58.9]}
2... d5 {[%clk 0:03:00.4]} 3. Nc3 {[%clk 0:02:52.4]} 3... dxe4 {[%clk
0:02:59.3]} 4. Nxe4 {[%clk 0:02:50.4]} 4... Nf6 {[%clk 0:02:59.8]} 5. Nxf6+
{[%clk 0:02:48.8]} 5... Qxf6 {[%clk 0:02:59.1]} 6. d3 {[%clk 0:02:48.7]} 6...
Bd6 {[%clk 0:02:59.4]} 7. Bg5 {[%clk 0:02:48.1]} 7... Qg6 {[%clk 0:02:59.7]} 8.
Qd2 {[%clk 0:02:47.6]} 8... O-O {[%clk 0:02:59.2]} 9. O-O-O {[%clk 0:02:47.4]}
9... Be6 {[%clk 0:02:59.2]} 10. Kb1 {[%clk 0:02:45.5]} 10... Nc6 {[%clk
0:02:54.9]} 11. Nh4 {[%clk 0:02:40.3]} 11... Qh5 {[%clk 0:02:43.4]} 12. Be2
{[%clk 0:02:38.7]} 12... Bg4 {[%clk 0:02:31.5]} 13. f3 {[%clk 0:02:36.9]} 13...
h6 {[%clk 0:02:17.4]} 14. Be3 {[%clk 0:02:02.4]} 14... Be6 {[%clk 0:02:01.3]}
15. g3 {[%clk 0:01:43.4]} 15... f5 {[%clk 0:02:01.1]} 16. f4 {[%clk 0:01:40.7]}
16... Qf7 {[%clk 0:02:01]} 17. a3 {[%clk 0:01:38.1]} 17... b5 {[%clk 0:01:32.5]}
18. Nf3 {[%clk 0:01:29.9]} 18... b4 {[%clk 0:01:29.7]} 19. a4 {[%clk 0:01:23.4]}
19... b3 {[%clk 0:01:20.6]} 20. c3 {[%clk 0:01:21.3]} 20... Qd7 {[%clk
0:01:16.5]} 21. d4 {[%clk 0:00:26.8]} 21... e4 {[%clk 0:01:15.9]} 22. d5 {[%clk
0:00:27.2]} 22... Ne7 {[%clk 0:00:32.9]} 23. Bb5 {[%clk 0:00:18.7]} 23... Qc8
{[%clk 0:00:28.9]} 24. dxe6 {[%clk 0:00:18.5]} 24... exf3 {[%clk 0:00:29.4]} 25.
Bd7 {[%clk 0:00:17.6]} 25... Qb7 {[%clk 0:00:28.1]} 26. Bd4 {[%clk 0:00:14.9]}
26... Rad8 {[%clk 0:00:15.8]} 27. Qe3 {[%clk 0:00:14.4]} 27... Qa6 {[%clk
0:00:12.4]} 28. Bc5 {[%clk 0:00:13.3]} 28... Rxd7 {[%clk 0:00:07.4]} 29. exd7
{[%clk 0:00:08.8]} 29... Qxa4 {[%clk 0:00:08]} 30. Ba3 {[%clk 0:00:07]} 30...
Kh7 {[%clk 0:00:03.4]} 31. Rxd6 {[%clk 0:00:05.8]} 31... cxd6 {[%clk 0:00:01.6]}
32. Qxe7 {[%clk 0:00:06.2]} 32... Rd8 {[%clk 0:00:01.3]} 33. Qe6 {[%clk
0:00:04.5]} 33... Qxd7 {[%clk 0:00:01.4]} 34. Qxd7 {[%clk 0:00:04.4]} 34... Rxd7
{[%clk 0:00:01.9]} 35. Rf1 {[%clk 0:00:05.1]} 35... d5 {[%clk 0:00:01.9]} 36.
Rxf3 {[%clk 0:00:04.7]} 36... d4 {[%clk 0:00:02.8]} 37. Rd3 {[%clk 0:00:04.3]}
37... Re7 {[%clk 0:00:01.5]} 38. Bxe7 {[%clk 0:00:04]} 1-0

[Event "*** Titled Tuesday Blitz"]
[Site "Chess.com"]
[Date "2021.02.09"]
[Round "8"]
[White "Mbneu"]
[Black "PawnEatingZombie"]
[Result "1-0"]
[WhiteElo "2290"]
[BlackElo "2116"]
[TimeControl "180+1"]
[EndTime "11:29:35 PST"]
[Termination "Mbneu won on time"]

1. d4 {[%clk 0:03:00.9]} 1... d5 {[%clk 0:02:59.5]} 2. c4 {[%clk 0:03:01.3]}
2... e6 {[%clk 0:02:59.4]} 3. Nc3 {[%clk 0:03:01.4]} 3... Bb4 {[%clk 0:03:00]}
4. g3 {[%clk 0:02:59.5]} 4... Nf6 {[%clk 0:02:47.3]} 5. Bg2 {[%clk 0:02:59.1]}
5... O-O {[%clk 0:02:47.7]} 6. cxd5 {[%clk 0:02:56.5]} 6... exd5 {[%clk
0:02:47.3]} 7. Nf3 {[%clk 0:02:54.9]} 7... c6 {[%clk 0:02:46.4]} 8. O-O {[%clk
0:02:53.9]} 8... Bf5 {[%clk 0:02:45.9]} 9. Bf4 {[%clk 0:02:48.3]} 9... Nbd7
{[%clk 0:02:44.9]} 10. Rc1 {[%clk 0:02:38.9]} 10... h6 {[%clk 0:02:42]} 11. a3
{[%clk 0:02:32.9]} 11... Bxc3 {[%clk 0:02:30]} 12. bxc3 {[%clk 0:02:15.8]} 12...
b5 {[%clk 0:02:07.1]} 13. Ne5 {[%clk 0:01:59.5]} 13... Nxe5 {[%clk 0:02:04.8]}
14. Bxe5 {[%clk 0:01:58.8]} 14... Ng4 {[%clk 0:01:39.5]} 15. Bf4 {[%clk
0:01:19.7]} 15... g5 {[%clk 0:01:39.1]} 16. Bd2 {[%clk 0:01:18.2]} 16... Nf6
{[%clk 0:01:35.4]} 17. h4 {[%clk 0:01:11]} 17... Ne4 {[%clk 0:01:31.8]} 18. Bxe4
{[%clk 0:00:55.5]} 18... Bxe4 {[%clk 0:01:31.3]} 19. f3 {[%clk 0:00:53.2]} 19...
Bg6 {[%clk 0:01:23]} 20. hxg5 {[%clk 0:00:49.1]} 20... hxg5 {[%clk 0:01:22.5]}
21. Rf2 {[%clk 0:00:33.4]} 21... f6 {[%clk 0:01:18.9]} 22. Rh2 {[%clk
0:00:31.8]} 22... Qd6 {[%clk 0:01:12]} 23. Kf2 {[%clk 0:00:31.4]} 23... Kg7
{[%clk 0:01:11.1]} 24. Qb3 {[%clk 0:00:26.7]} 24... Rh8 {[%clk 0:01:07]} 25.
Rch1 {[%clk 0:00:27.1]} 25... Rxh2+ {[%clk 0:01:05.9]} 26. Rxh2 {[%clk 0:00:28]}
26... Re8 {[%clk 0:00:54.6]} 27. Qb4 {[%clk 0:00:25.9]} 27... Qe6 {[%clk
0:00:40.4]} 28. Kf1 {[%clk 0:00:22.8]} 28... Qf5 {[%clk 0:00:29.8]} 29. Qd6
{[%clk 0:00:17.1]} 29... Qe6 {[%clk 0:00:24.8]} 30. Qxe6 {[%clk 0:00:16.6]}
30... Rxe6 {[%clk 0:00:24.8]} 31. Kf2 {[%clk 0:00:16.1]} 31... Re8 {[%clk
0:00:21.6]} 32. Rh1 {[%clk 0:00:15.1]} 32... Rb8 {[%clk 0:00:19.7]} 33. Ra1
{[%clk 0:00:12]} 33... Rb6 {[%clk 0:00:19.3]} 34. a4 {[%clk 0:00:11.4]} 34...
Ra6 {[%clk 0:00:18.9]} 35. a5 {[%clk 0:00:11.6]} 35... Bf7 {[%clk 0:00:14.6]}
36. Ke1 {[%clk 0:00:10.6]} 36... Be6 {[%clk 0:00:14.4]} 37. Kd1 {[%clk
0:00:09.7]} 37... Kf7 {[%clk 0:00:11.8]} 38. Kc1 {[%clk 0:00:09.8]} 38... Ke7
{[%clk 0:00:12.1]} 39. Kb2 {[%clk 0:00:10.4]} 39... Kd6 {[%clk 0:00:12.5]} 40.
Be3 {[%clk 0:00:08.1]} 40... Bf5 {[%clk 0:00:10.7]} 41. Kb3 {[%clk 0:00:07.8]}
41... Bg6 {[%clk 0:00:09.2]} 42. Kb4 {[%clk 0:00:08]} 42... f5 {[%clk 0:00:02]}
43. Rh1 {[%clk 0:00:07.9]} 43... f4 {[%clk 0:00:01.3]} 44. Rh6 {[%clk
0:00:07.9]} 1-0